bitfinex/quotes_SOLUSD_20250316
["timestamp","ask_amount","ask_price","bid_price","bid_amount"]
[1742130907386,0.14216157,129.79,129.74,0.063]
[1742130907586,7.2,129.78,129.74,0.063]
[1742130908301,14.9053,129.78,129.74,0.063]
[1742130909806,7.2,129.78,129.74,0.063]
[1742130911011,38.33962314,129.78,129.74,0.063]
[1742130911179,56.989272,129.78,129.74,0.063]
[1742130913108,0.14216157,129.74,129.66,14.13468986]
[1742130913282,7.2,129.73,129.67,18.64964886]
[1742130914309,7.2,129.73,129.67,26.36094886]
[1742130914681,7.2,129.73,129.67,7.7113]
[1742130915004,0.28432314,129.69,129.66,0.03]
[1742130915296,0.14216157,129.67,129.66,0.03]
[1742130916390,23.29216157,129.67,129.66,0.03]
[1742130917191,31.14612314,129.67,129.66,0.03]
[1742130917382,7.2,129.68,129.66,0.03]
[1742130919198,23.15,129.71,129.66,0.03]
[1742130919399,7.34216157,129.72,129.66,0.03]
[1742130920916,30.49216157,129.72,129.66,0.03]
[1742130921103,38.20106157,129.72,129.66,0.03]
[1742130921304,30.49216157,129.72,129.66,0.03]
[1742130922324,38.20106157,129.72,129.66,0.03]
[1742130922815,30.49216157,129.72,129.66,0.03]
[1742130923206,38.20106157,129.72,129.66,0.03]
[1742130923402,30.49216157,129.72,129.66,0.03]
[1742130923714,7.2,129.72,129.66,0.03]
[1742130925795,14.9089,129.72,129.66,0.03]
[1742130926210,0.14216157,129.71,129.66,0.03]
[1742130926910,31.00166157,129.71,129.66,0.03]
[1742130927221,23.29216157,129.71,129.66,0.03]
[1742130927716,38.122,129.72,129.66,0.03]
[1742130928216,7.2,129.71,129.66,0.03]
[1742130929224,7.2,129.71,129.66,7.7424]
[1742130929397,38.0596,129.71,129.66,0.03]
[1742130930009,30.35,129.71,129.66,0.03]
[1742130930326,38.0597,129.71,129.66,0.03]
[1742130931725,7.2,129.71,129.66,0.03]
[1742130932220,14.9097,129.71,129.66,0.03]
[1742130932409,38.0597,129.71,129.66,0.03]
[1742130933624,7.7106,129.69,129.66,0.03]
[1742130933802,30.8606,129.69,129.66,0.03]
[1742130934123,0.14216157,129.68,129.66,0.03]
[1742130935226,7.7118,129.67,129.66,0.03]
[1742130938229,20.0,129.67,129.66,0.03]
[1742130939623,27.7118,129.67,129.66,0.03]
[1742130939825,23.15,129.63,129.54,7.7196]
[1742130940030,7.2,129.62,129.54,7.7196]
[1742130940625,7.2,129.62,129.55,18.64964886]
[1742130941024,14.915,129.62,129.56,7.7184]
[1742130941427,7.2,129.62,129.56,7.7184]
[1742130942731,30.35,129.62,129.56,7.7184]
[1742130942915,0.28432314,129.61,129.54,7.7196]
[1742130943233,23.15,129.6,129.53,0.03]
[1742130946022,23.29216157,129.61,129.54,7.7196]
[1742130946530,31.00766157,129.61,129.54,7.7196]
[1742130948010,23.29216157,129.59,129.53,0.03]
[1742130948213,31.00786157,129.61,129.53,0.03]
[1742130948412,31.00786157,129.61,129.53,18.67964886]
[1742130948619,7.7157,129.61,129.53,0.03]
[1742130948816,14.915,129.62,129.53,0.03]
[1742130949013,20.0,129.59,129.53,18.67964886]
[1742130949229,23.29216157,129.61,129.53,18.67964886]
[1742130950738,0.14216157,129.6,129.54,7.7196]
[1742130951441,0.14216157,129.6,129.53,7.7499]
[1742130951939,43.15,129.58,129.53,0.03]
[1742130952141,7.2,129.57,129.53,0.03]
[1742130952445,7.2,129.57,129.53,7.7501]
[1742130952841,7.2,129.57,129.53,0.03]
[1742130953627,23.15,129.6,129.53,0.03]
[1742130953840,7.2,129.59,129.53,0.03]
[1742130954041,27.2,129.6,129.53,0.03]
[1742130954440,7.2,129.6,129.53,27.7677]
[1742130954622,7.2,129.6,129.54,18.64964886]
[1742130954822,24.8141,129.62,129.55,7.719]
[1742130955131,30.35,129.61,129.55,7.719]
[1742130955320,23.15,129.61,129.55,7.719]
[1742130955646,7.2,129.61,129.55,7.719]
[1742130956136,7.2,129.62,129.56,18.64964886]
[1742130956331,0.063,129.66,129.6,18.64964886]
[1742130956850,0.063,129.66,129.61,7.7154]
[1742130957418,0.063,129.66,129.62,18.64964886]
[1742130957629,0.063,129.66,129.61,7.7154]
[1742130961618,0.063,129.66,129.6,7.7159]
[1742130962034,20.063,129.66,129.59,9.2853]
[1742130962551,25.84964886,129.65,129.58,7.7169]
[1742130963224,25.84964886,129.65,129.56,1.6382]
[1742130963225,18.64964886,129.63,129.56,1.6382]
[1742130963428,18.64964886,129.63,129.54,7.7196]
[1742130964833,26.36394886,129.63,129.54,7.7196]
[1742130966155,18.64964886,129.63,129.54,7.7196]
[1742130966355,1.5243,129.64,129.57,20.0]
[1742130967559,9.2381,129.64,129.57,20.0]
[1742130968848,9.2381,129.64,129.58,7.7172]
[1742130972463,9.2381,129.64,129.58,7.7472]
[1742130973146,18.64964886,129.63,129.58,0.03]
[1742130973347,9.238,129.64,129.58,0.03]
[1742130974048,1.5243,129.64,129.58,0.03]
[1742130974251,1.5243,129.64,129.58,0.31432314]
[1742130974439,7.2,129.65,129.58,20.31432314]
[1742130974640,7.2,129.65,129.59,7.7166]
[1742130974860,14.9131,129.65,129.59,7.7166]
[1742130976054,7.2,129.65,129.59,7.7166]
[1742130977244,41.79964886,129.64,129.58,0.03]
[1742130977543,41.79964886,129.64,129.58,7.7471]
[1742130977763,41.79964886,129.64,129.58,0.03]
[1742130977966,41.79964886,129.64,129.58,7.747]
[1742130978573,18.64964886,129.64,129.58,7.747]
[1742130979370,7.7139,129.64,129.58,0.03]
[1742130979545,7.2,129.65,129.58,0.31432314]
[1742130979868,7.2,129.65,129.58,0.17216157]
[1742130981050,0.063,129.66,129.6,20.0]
[1742130981349,0.063,129.66,129.61,7.7154]
[1742130982865,0.063,129.66,129.62,0.28432314]
[1742130983363,0.063,129.66,129.63,7.7142]
[1742130984145,0.063,129.66,129.59,6.4093]
[1742130984952,0.063,129.66,129.6,8.00032314]
[1742130985570,0.063,129.66,129.62,20.0]
[1742130987282,0.063,129.66,129.63,20.28432314]
[1742130987466,0.063,129.66,129.64,7.7136]
[1742130989290,0.063,129.66,129.65,7.99732314]
[1742130989477,0.063,129.66,129.65,7.713]
[1742130989986,0.0001,129.66,129.65,33.263972]
[1742130990381,0.0001,129.66,129.65,14.61432314]
[1742130992993,0.0001,129.66,129.65,7.713]
[1742130993580,0.0001,129.66,129.65,20.0]
[1742130994698,0.0001,129.66,129.65,27.713]
[1742130995988,0.0001,129.66,129.64,7.7134]
[1742130996195,0.0001,129.66,129.61,0.28432314]
[1742130996576,0.0001,129.66,129.62,20.0]
[1742130997503,0.0001,129.66,129.63,20.0]
[1742131000893,0.0001,129.66,129.62,0.03]
[1742131004812,0.0001,129.66,129.64,20.0]
[1742131005807,0.0001,129.66,129.65,7.713]
[1742131006622,0.0001,129.66,129.64,7.99792314]
[1742131007486,0.0001,129.66,129.65,20.0]
[1742131007885,0.0001,129.66,129.64,7.7136]
[1742131008908,0.0001,129.66,129.65,20.0]
[1742131009115,0.0001,129.66,129.63,7.7142]
[1742131009413,0.0001,129.66,129.63,27.7142]
[1742131010510,0.0001,129.66,129.63,7.7142]
[1742131011012,0.0001,129.66,129.63,27.7142]
[1742131014390,0.0001,129.66,129.62,7.7445]
[1742131014593,0.0001,129.66,129.62,0.03]
[1742131015513,1.5709,129.65,129.62,0.03]
[1742131015815,7.7136,129.64,129.62,0.03]
[1742131017490,18.64964886,129.63,129.62,0.03]
[1742131017786,40.12374886,129.63,129.62,0.03]
[1742131017986,40.408072,129.63,129.62,0.03]
[1742131019113,18.64964886,129.61,129.58,0.03]
[1742131019697,7.716,129.6,129.58,0.03]
[1742131020915,18.64964886,129.59,129.58,0.03]
[1742131022406,7.716,129.6,129.58,0.03]
[1742131022917,26.36524886,129.61,129.58,0.03]
[1742131023117,1.5352,129.62,129.58,0.03]
[1742131023622,18.64964886,129.61,129.58,0.03]
[1742131024022,1.5352,129.62,129.58,0.03]
[1742131024325,7.18,129.63,129.58,0.03]
[1742131024829,7.7132,129.65,129.58,7.7472]
[1742131025398,7.7132,129.65,129.58,0.03]
[1742131025399,18.933972,129.64,129.58,0.03]
[1742131025831,20.43221043,129.6,129.58,0.03]
[1742131026129,25.82964886,129.59,129.58,0.03]
[1742131027429,33.54624886,129.59,129.58,0.03]
[1742131027805,33.830572,129.59,129.58,0.03]
[1742131028002,0.28432314,129.57,129.53,0.03]
[1742131028628,18.64964886,129.58,129.53,0.03]
[1742131028803,0.28432314,129.57,129.53,0.03]
[1742131028997,20.29004886,129.54,129.53,0.03]
[1742131029212,27.47004886,129.54,129.53,0.03]
[1742131029417,27.754372,129.54,129.53,0.03]
[1742131029725,35.473972,129.54,129.53,0.03]
[1742131030634,0.14216157,129.57,129.53,0.03]
[1742131030808,0.14216157,129.56,129.53,0.03]
[1742131031210,18.64964886,129.57,129.53,0.03]
[1742131031711,31.64572314,129.59,129.53,0.03]
[1742131031908,7.18,129.58,129.53,0.03]
[1742131032629,18.64964886,129.57,129.53,0.03]
[1742131033218,0.28432314,129.56,129.53,0.03]
[1742131033531,18.64964886,129.55,129.53,0.03]
[1742131035242,0.28432314,129.54,129.53,0.03]
[1742131035611,8.00392314,129.54,129.53,0.03]
[1742131036241,49.843572,129.54,129.53,0.03]
[1742131036615,26.653572,129.54,129.53,0.03]
[1742131038533,7.7178,129.57,129.53,0.03]
[1742131038740,18.64964886,129.56,129.53,0.03]
[1742131040221,7.719,129.55,129.53,0.03]
[1742131040847,18.933972,129.54,129.53,0.03]
[1742131042323,8.00392314,129.54,129.53,0.03]
[1742131044324,7.86176157,129.54,129.53,0.03]
[1742131044518,18.64964886,129.54,129.53,0.03]
[1742131044933,18.933972,129.54,129.53,0.03]
[1742131045142,43.19,129.5,129.45,0.03]
[1742131045439,18.933972,129.48,129.45,0.03]
[1742131045834,18.433972,129.48,129.45,0.03]
[1742131046018,7.18,129.49,129.45,0.03]
[1742131046219,20.0,129.5,129.45,0.03]
[1742131046421,7.7237,129.47,129.45,0.03]
[1742131047336,7.7237,129.47,129.44,2.81749275]
[1742131047337,50.0938,129.43,129.39,0.07574212]
[1742131047538,43.19,129.38,129.27,7.8078]
[1742131047839,7.18,129.37,129.27,15.5432]
[1742131048219,6.53906157,129.38,129.26,108.04173745]
[1742131048546,7.7321,129.33,129.26,108.04173745]
[1742131048845,7.7321,129.33,129.2,19.24433749]
[1742131048846,18.933972,129.32,129.2,19.24433749]
[1742131049021,42.123972,129.32,129.2,19.24433749]
[1742131049222,18.64964886,129.32,129.2,19.71433749]
[1742131049448,18.64964886,129.32,129.21,0.61216157]
[1742131049742,25.90964886,129.32,129.21,0.75432314]
[1742131049941,25.90964886,129.32,129.23,20.0]
[1742131050143,15.0116,129.34,129.22,0.61216157]
[1742131050439,81.7,129.39,129.28,0.14216157]
[1742131050646,7.32,129.41,129.3,20.0]
[1742131050827,7.32,129.41,129.29,0.14216157]
[1742131051022,23.19,129.39,129.29,0.14216157]
[1742131051627,41.83964886,129.38,129.3,20.0]
[1742131051930,7.32,129.41,129.3,20.0]
[1742131052137,41.83964886,129.4,129.3,20.0]
[1742131052638,41.83964886,129.4,129.31,7.7333]
[1742131053447,41.83964886,129.4,129.28,0.14216157]
[1742131053651,61.83964886,129.36,129.25,0.14216157]
[1742131053941,30.53,129.35,129.25,0.14216157]
[1742131054154,41.83964886,129.34,129.24,15.0775]
[1742131054338,41.83964886,129.34,129.24,34.4213]
[1742131054533,23.19,129.34,129.25,0.14216157]
[1742131054729,7.34,129.39,129.27,0.28432314]
[1742131054935,7.34,129.39,129.27,18.933972]
[1742131055134,7.34,129.39,129.27,19.403972]
[1742131055949,30.53,129.39,129.27,19.403972]
[1742131056444,41.83964886,129.38,129.29,20.0]
[1742131056676,41.83964886,129.38,129.3,7.7339]
[1742131056948,23.19,129.38,129.3,7.7339]
[1742131057847,23.19,129.36,129.26,20.0]
[1742131058056,23.19,129.36,129.27,20.0]
[1742131058350,41.83964886,129.35,129.27,20.0]
[1742131058728,41.83964886,129.35,129.28,7.7351]
[1742131059824,41.83964886,129.35,129.27,7.7357]
[1742131060840,43.19,129.36,129.27,27.075]
[1742131061046,41.83964886,129.35,129.27,27.075]
[1742131061642,43.33216157,129.39,129.27,27.075]
[1742131061835,0.28432314,129.36,129.27,27.075]
[1742131062038,41.83964886,129.37,129.27,27.075]
[1742131063361,23.19,129.37,129.28,0.14216157]
[1742131064041,23.19,129.37,129.29,7.7345]
[1742131064366,23.19,129.35,129.29,7.2345]
[1742131064567,23.19,129.35,129.29,26.5708]
[1742131065735,18.64964886,129.36,129.29,26.5708]
[1742131065935,41.83964886,129.36,129.26,7.7363]
[1742131066349,41.83964886,129.36,129.26,27.0771]
[1742131067644,30.51,129.38,129.27,0.14216157]
[1742131067849,18.64964886,129.37,129.27,0.14216157]
[1742131068463,18.64964886,129.37,129.28,27.7351]
[1742131068758,18.64964886,129.37,129.28,47.0729]
[1742131071542,6.5771,129.36,129.28,47.0729]
[1742131073074,0.28432314,129.33,129.2,7.7399]
[1742131073243,18.64964886,129.31,129.2,7.7399]
[1742131073441,7.28,129.32,129.23,20.0]
[1742131074373,18.64964886,129.32,129.23,20.0]
[1742131074669,18.64964886,129.32,129.23,7.7381]
[1742131074966,30.47,129.33,129.23,27.0834]
[1742131075368,41.83964886,129.32,129.23,27.0834]
[1742131077767,41.83964886,129.32,129.23,27.0834]
[1742131079369,49.09964886,129.32,129.23,27.0834]
[1742131079946,1.5275,129.31,129.23,27.0834]
[1742131080147,0.14216157,129.27,129.21,7.7393]
[1742131080345,7.3,129.26,129.21,7.7393]
[1742131080555,48.01414886,129.28,129.21,7.7393]
[1742131080556,6.1745,129.28,129.21,7.7393]
[1742131080743,6.1745,129.28,129.21,27.0876]
[1742131080959,6.1745,129.28,129.21,19.3483]
[1742131081669,7.34,129.3,129.21,19.3483]
[1742131082561,7.34,129.3,129.21,26.6883]
[1742131083169,25.98964886,129.3,129.21,34.4276]
[1742131085476,7.34,129.3,129.21,34.4276]
[1742131086180,7.34,129.3,129.21,34.4576]
[1742131086479,6.1745,129.31,129.22,0.28432314]
[1742131086775,0.063,129.3,129.22,18.933972]
[1742131086982,0.063,129.3,129.26,0.14216157]
[1742131087169,0.063,129.3,129.26,7.46216157]
[1742131087366,0.063,129.3,129.26,9.00136157]
[1742131087685,0.063,129.3,129.27,7.7357]
[1742131087875,0.063,129.3,129.28,0.14216157]
[1742131088252,0.063,129.3,129.27,27.075]
[1742131088460,0.063,129.3,129.28,0.14216157]
[1742131088678,0.063,129.3,129.28,0.28432314]
[1742131089586,0.063,129.3,129.29,7.87666157]
[1742131091175,0.063,129.3,129.29,8.01882314]
[1742131093468,0.063,129.3,129.29,320.01882314]
[1742131094065,0.063,129.3,129.29,8.01882314]
[1742131094559,0.063,129.3,129.29,7.7345]
[1742131094960,0.063,129.3,129.29,8.01882314]
[1742131095164,0.063,129.3,129.29,26.668472]
[1742131095385,0.063,129.3,129.29,8.01882314]
[1742131097196,6.1745,129.37,129.3,0.14216157]
[1742131097500,0.063,129.4,129.32,18.79181043]
[1742131097663,0.063,129.4,129.36,0.28432314]
[1742131097869,0.063,129.4,129.36,7.58432314]
[1742131098600,0.063,129.4,129.37,7.7297]
[1742131100599,0.0001,129.4,129.38,0.28432314]
[1742131100798,0.0001,129.4,129.39,0.14216157]
[1742131100982,0.0001,129.4,129.38,312.0]
[1742131101783,0.0001,129.4,129.39,20.0]
[1742131101984,0.0001,129.4,129.39,27.7285]
[1742131102402,0.0001,129.4,129.39,27.87066157]
[1742131102584,0.0001,129.4,129.39,28.01282314]
[1742131102981,0.063,129.5,129.4,0.28432314]
[1742131103285,0.063,129.5,129.44,20.0]
[1742131104088,0.063,129.5,129.45,7.7249]
[1742131104587,0.063,129.5,129.42,0.14216157]
[1742131104785,0.063,129.5,129.43,0.14216157]
[1742131105282,0.063,129.5,129.44,20.0]
[1742131105796,0.063,129.5,129.45,7.7249]
[1742131107795,0.063,129.5,129.43,7.7261]
[1742131108507,0.063,129.5,129.4,15.0279]
[1742131108708,18.71264886,129.5,129.4,15.0279]
[1742131109101,18.64964886,129.48,129.36,3.90016264]
[1742131109294,7.7906,129.49,129.4,20.0]
[1742131109703,6.2588,129.49,129.43,0.14216157]
[1742131110891,0.063,129.5,129.43,0.14216157]
[1742131111205,0.063,129.5,129.43,7.58432314]
[1742131111907,0.063,129.5,129.44,7.7255]
[1742131112514,0.063,129.48,129.44,7.7255]
[1742131116917,0.063,129.48,129.46,7.7243]
[1742131118593,0.063,129.48,129.44,7.86766157]
[1742131119721,0.063,129.48,129.44,7.7255]
[1742131120795,0.063,129.48,129.47,20.14216157]
[1742131121898,0.063,129.48,129.47,27.86586157]
[1742131122302,0.063,129.5,129.47,27.86586157]
[1742131122618,0.0001,129.5,129.48,0.14216157]
[1742131123620,0.0001,129.5,129.47,27.7237]
[1742131125425,0.0001,129.5,129.47,20.0]
[1742131125607,0.0001,129.5,129.46,7.86626157]
[1742131126619,0.0001,129.5,129.43,0.14216157]
[1742131126827,8.0153,129.5,129.41,8.01162314]
[1742131127127,8.0153,129.5,129.41,7.86946157]
[1742131127929,8.0153,129.5,129.44,20.0]
[1742131128622,7.7226,129.49,129.44,20.0]
[1742131128828,7.7226,129.49,129.41,7.86946157]
[1742131128829,7.3,129.48,129.42,27.7267]
[1742131132009,34.3315,129.48,129.4,0.03]
[1742131132429,18.64964886,129.47,129.4,0.03]
[1742131132622,7.7249,129.45,129.4,0.03]
[1742131133320,15.7398,129.46,129.4,0.03]
[1742131133838,8.0152,129.46,129.41,20.0]
[1742131134008,15.2752,129.49,129.41,20.0]
[1742131134510,8.0152,129.49,129.42,0.14216157]
[1742131134707,8.0152,129.49,129.43,7.7261]
[1742131134912,8.0152,129.49,129.44,0.14216157]
[1742131136431,8.0152,129.49,129.43,7.7261]
[1742131136933,8.0152,129.49,129.42,7.86886157]
[1742131137138,8.0152,129.49,129.44,0.03]
[1742131138230,15.7378,129.49,129.44,0.03]
[1742131140511,18.64964886,129.48,129.44,0.03]
[1742131140712,7.24,129.47,129.44,0.03]
[1742131142442,7.7243,129.46,129.44,0.03]
[1742131143323,0.0001,129.5,129.44,0.03]
[1742131143513,18.64974886,129.5,129.44,0.03]
[1742131144532,26.37174886,129.5,129.44,0.03]
[1742131144744,18.64974886,129.5,129.44,0.03]
[1742131145338,26.37174886,129.5,129.44,0.03]
[1742131146337,18.64974886,129.5,129.44,0.03]
[1742131146710,51.28562314,129.46,129.4,0.03]
[1742131147043,18.64964886,129.44,129.4,0.03]
[1742131147410,26.08964886,129.44,129.4,0.03]
[1742131147640,7.44,129.44,129.4,0.03]
[1742131148943,15.1661,129.44,129.4,0.03]
[1742131149133,42.123972,129.43,129.4,0.03]
[1742131149453,42.123972,129.41,129.4,0.03]
[1742131149745,20.24584886,129.41,129.4,0.03]
[1742131150846,1.5962,129.41,129.4,0.03]
[1742131151435,20.24584886,129.41,129.4,0.03]
[1742131151819,43.43584886,129.41,129.4,0.03]
[1742131152355,51.447472,129.41,129.4,0.03]
[1742131152640,51.447472,129.41,129.31,1.652]
[1742131152641,41.83964886,129.38,129.31,7.7632]
[1742131152944,7.44,129.37,129.31,0.03]
[1742131155040,38.3599,129.37,129.31,0.03]
[1742131156019,7.44,129.37,129.31,0.03]
[1742131158442,7.4,129.38,129.31,0.03]
[1742131159149,9.3238,129.41,129.31,0.03]
[1742131159322,7.4,129.4,129.31,0.17216157]
[1742131160048,1.5962,129.41,129.35,20.0]
[1742131160344,0.28432314,129.4,129.31,0.03]
[1742131161255,18.64964886,129.4,129.31,0.03]
[1742131161774,18.71264886,129.4,129.31,0.03]
[1742131161957,41.90264886,129.4,129.31,0.03]
[1742131162176,49.63054886,129.4,129.31,0.03]
[1742131162448,0.063,129.4,129.31,0.03]
[1742131162639,7.4,129.39,129.31,0.03]
[1742131166045,15.1286,129.39,129.31,0.03]
[1742131169343,7.4,129.39,129.31,0.03]
[1742131169955,15.1286,129.39,129.31,0.03]
[1742131171150,7.4,129.39,129.31,0.03]
[1742131171353,7.4,129.39,129.32,20.0]
[1742131171956,18.64964886,129.38,129.31,0.03]
[1742131172337,6.2861,129.37,129.31,0.03]
[1742131172840,18.64964886,129.36,129.31,0.03]
[1742131173040,7.7315,129.34,129.31,0.03]
[1742131173244,15.0915,129.34,129.31,0.03]
[1742131176654,18.64964886,129.33,129.31,0.03]
[1742131177360,26.38194886,129.33,129.31,0.03]
[1742131180246,0.28432314,129.3,129.18,8.1448]
[1742131180446,7.4,129.29,129.18,8.1448]
[1742131180746,7.4,129.29,129.21,20.0]
[1742131181468,15.1345,129.29,129.22,7.7387]
[1742131181943,15.1345,129.29,129.19,0.14216157]
[1742131182269,15.1345,129.29,129.21,20.0]
[1742131183458,34.4708,129.29,129.21,20.0]
[1742131183774,34.4708,129.29,129.19,7.7405]
[1742131183775,18.933972,129.28,129.19,7.7405]
[1742131184369,18.64964886,129.28,129.19,7.7405]
[1742131184776,15.1345,129.29,129.19,7.7405]
[1742131185453,9.3185,129.31,129.23,7.7381]
[1742131185662,1.5847,129.31,129.23,7.7381]
[1742131186052,9.3181,129.31,129.23,7.7381]
[1742131187055,9.3181,129.31,129.21,7.7393]
[1742131187866,1.5847,129.31,129.21,7.7393]
[1742131188174,1.5847,129.31,129.24,20.0]
[1742131188375,6.2861,129.32,129.24,21.5159]
[1742131188548,1.5947,129.34,129.25,0.14216157]
[1742131189275,1.5947,129.34,129.26,7.7363]
[1742131189775,1.5947,129.34,129.29,20.0]
[1742131190079,27.60434886,129.37,129.29,20.0]
[1742131190374,35.33454886,129.37,129.26,7.7363]
[1742131190554,18.64964886,129.36,129.26,7.7363]
[1742131190754,16.6849,129.37,129.26,7.7363]
[1742131190968,1.5947,129.37,129.29,20.0]
[1742131191164,16.7044,129.37,129.3,7.7339]
[1742131191370,9.3244,129.37,129.3,7.7339]
[1742131191878,27.97404886,129.37,129.3,7.7339]
[1742131193768,35.33404886,129.37,129.3,7.7339]
[1742131194575,8.9547,129.37,129.3,7.7339]
[1742131195084,1.5947,129.37,129.3,7.7339]
[1742131196184,9.3245,129.37,129.3,7.7339]
[1742131198577,9.3875,129.37,129.3,7.7339]
[1742131201186,70.55154886,129.37,129.26,7.7363]
[1742131201485,18.64964886,129.36,129.26,7.7363]
[1742131201684,7.7309,129.35,129.26,7.7363]
[1742131202389,27.0583,129.35,129.26,7.7363]
[1742131203098,7.7309,129.35,129.26,7.7363]
[1742131203873,7.7309,129.35,129.27,20.0]
[1742131205297,18.64964886,129.34,129.24,7.7622]
[1742131205468,41.83964886,129.34,129.25,7.7369]
[1742131206496,0.28432314,129.33,129.24,7.7622]
[1742131206669,18.64964886,129.3,129.21,7.969]
[1742131206871,18.64964886,129.28,129.21,15.708]
[1742131207380,7.7357,129.27,129.21,15.708]
[1742131207883,18.64964886,129.28,129.21,15.708]
[1742131207884,26.38484886,129.28,129.21,15.708]
[1742131209279,26.38484886,129.28,129.21,0.03]
[1742131209475,26.38484886,129.28,129.21,20.03]
[1742131210074,26.38484886,129.28,129.21,0.03]
[1742131212995,7.7363,129.27,129.21,0.03]
[1742131213296,18.64964886,129.26,129.21,0.03]
[1742131213487,7.7354,129.28,129.21,0.03]
[1742131213693,18.64964886,129.27,129.21,0.03]
[1742131214201,18.64964886,129.28,129.21,0.03]
[1742131215190,26.38484886,129.28,129.21,0.03]
[1742131216286,26.38544886,129.27,129.21,0.03]
[1742131217005,7.7353,129.28,129.21,0.03]
[1742131217188,26.38494886,129.28,129.21,0.03]
[1742131218275,1.73946157,129.31,129.23,1.5561]
[1742131218600,18.64964886,129.32,129.23,1.5561]
[1742131218804,25.94964886,129.32,129.23,1.5561]
[1742131219006,7.3,129.32,129.23,1.5561]
[1742131219200,7.3,129.35,129.26,20.0]
[1742131219580,7.3,129.35,129.27,8.1219]
[1742131219777,18.64964886,129.34,129.27,8.1219]
[1742131220093,7.3,129.35,129.27,8.1219]
[1742131220480,7.7315,129.34,129.28,7.7351]
[1742131220680,7.3,129.35,129.28,7.7351]
[1742131222313,0.063,129.3,129.28,7.7351]
[1742131222684,0.063,129.3,129.27,8.1219]
[1742131222888,0.063,129.3,129.27,15.8573]
[1742131223185,0.063,129.3,129.27,15.3573]
[1742131228188,0.063,129.3,129.26,20.0]
[1742131231010,0.5,129.35,129.26,20.0]
[1742131231011,0.5,129.35,129.27,0.28432314]
[1742131231217,0.5,129.35,129.28,7.7411]
[1742131232414,0.5,129.35,129.28,319.7411]
[1742131232915,0.5,129.36,129.28,319.7411]
[1742131233093,0.5,129.35,129.28,319.7411]
[1742131234415,0.5,129.35,129.33,0.2387015]
[1742131235113,0.563,129.37,129.33,0.2387015]
[1742131235298,0.063,129.37,129.33,0.2387015]
[1742131235500,0.063,129.35,129.33,0.2387015]
[1742131238218,0.063,129.35,129.34,21.5034]
[1742131238398,0.063,129.35,129.34,333.5034]
[1742131239116,0.063,129.35,129.34,21.5034]
[1742131239614,0.063,129.37,129.35,20.0]
[1742131240721,0.5,129.36,129.33,0.2387015]
[1742131241427,0.5,129.34,129.33,0.2387015]
[1742131242316,19.14964886,129.34,129.33,0.2387015]
[1742131242824,26.88114886,129.34,129.33,0.2387015]
[1742131244920,50.355472,129.34,129.33,0.2387015]
[1742131245629,26.88114886,129.34,129.33,0.2387015]
[1742131246331,19.14964886,129.34,129.33,0.2387015]
[1742131246505,26.88114886,129.34,129.33,0.2387015]
[1742131248319,0.5,129.34,129.33,0.2387015]
[1742131248916,0.563,129.35,129.33,0.2387015]
[1742131249125,0.063,129.35,129.33,0.2387015]